Workbook

Sheet Hoja1
R1: =MIN(S9:S43)-50 -> 935.5525625
D2: Capital | E2: 1000 | G2: =MIN(F9:F43)-50 -> 900 | H2: % ACIERTO | J2: =J21 -> 0.4705882353 | L2: AVG. WIN | N2: =M21 -> 131.1921096 | R2: =MAX(S9:S43)+50 -> 1971.251645 | U2: % ACIERTO | W2: =X21 -> 0.4705882353 | Y2: AVG. WIN | AA2: =AA21 -> 132.0989384
D3: Riesgo | E3: 0.05 | G3: =MAX(F9:F43)+50 -> 1999.415707 | AG3: 10 SL
D4: W/L | E4: 2 | AG4: 9 TP | AH4: =MIN(AG9:AG43) -> -328.7312998
H5: % FALLO | J5: =J22 -> 0.5294117647 | L5: AVG. LOSS | N5: =M22 -> 70.77137172 | U5: % FALLO | W5: =X22 -> 0.5294117647 | Y5: AVG. LOSS | AA5: =AA22 -> 71.57744172 | AH5: =MIN(AF10:AF43) -> -0.18549375 | AN5: MÁXIMA
AN6: RACHA S.L | AO6: =MIN(AO9:AO43) -> -0.142625 | AP6: =MIN(AP9:AP43) -> -278.0354152
D7: Resultado | Q7: Resultado | AF7: DD | AG7: DRAWDOWN | AH7: # RACHAS | AK7: # RACHAS SL | AN7: CONSECUTIVO | AO7: DD | AP7: DRAWDOWN | AQ7: # RACHAS
D8: SL / TP | E8: Monto | F8: Saldo | H8: ESP. MAT | J8: =(J2*N2)-(J5*N5) -> 24.27026656 | L8: DRAWDOWN | N8: =AP6 -> -278.0354152 | Q8: SL / TP | R8: Monto | S8: Saldo | U8: ESP. MAT | W8: =(W2*AA2)-(W5*AA5) -> 24.27026656 | Y8: DRAWDOWN | AA8: =AH4 -> -328.7312998 | AF8: % | AG8: $ | AH8: =SUM(AH10:AH43) -> 14 | AN8: =MAX(AN10:AN43) -> 4
F9: =E2 -> 1000 | S9: =E2 -> 1000 | AG9: =+S9 -> 1000 | AI9: 0 | AP9: =+F9 -> 1000
B10: 1 | C10: =RAND() -> 0.966754178 | D10: S.L | E10: =IF(D10="","",IF(D10="S.L",F9*$E$3*-1,F9*$E$3*$E$4)) -> -50 | F10: =IF(E10="","",F9+E10) -> 950 | N10: =AO6 -> -0.142625 | O10: =RAND() -> 0.13606195 | P10: =RAND() -> 0.3900180834 | Q10: T.P | R10: =IF(Q10="","",IF(Q10="S.L",S9*$E$3*-1,S9*$E$3*$E$4)) -> 100 | S10: =IF(R10="","",R10+S9) -> 1100 | AA10: =AH5 -> -0.18549375 | AF10: =S10/MAX($S$9:S10)-1 -> 0 | AG10: =S10-MAX($S$9:S10) -> 0 | AH10: =IF(OR(AI10<AI9,AI10>AI9),1,0) -> 1 | AI10: =IF(AJ10="S.L",2,1) -> 1 | AJ10: =Q10 -> T.P | AK10: =IF(AI10=2,1,0) -> 0 | AL10: =AH10 -> 1 | AM10: =IF(AK10=1,SUM(AK$8:AK10),"") ->  | AN10: =IF(AJ10="S.L",AN9+1,0) -> 0 | AO10: =F10/MAX($F$9:F10)-1 -> -0.05 | AP10: =F10-MAX($F$9:F10) -> -50
B11: 2 | C11: =RAND() -> 0.8700741122 | D11: T.P | E11: =IF(D11="","",IF(D11="S.L",F10*$E$3*-1,F10*$E$3*$E$4)) -> 95 | F11: =IF(E11="","",F10+E11) -> 1045 | O11: 0.6065584293 | P11: =RAND() -> 0.3971362636 | Q11: T.P | R11: =IF(Q11="","",IF(Q11="S.L",S10*$E$3*-1,S10*$E$3*$E$4)) -> 110 | S11: =IF(R11="","",R11+S10) -> 1210 | AF11: =S11/MAX($S$9:S11)-1 -> 0 | AG11: =S11-MAX($S$9:S11) -> 0 | AH11: =IF(OR(AI11<AI10,AI11>AI10),1,0) -> 0 | AI11: =IF(AJ11="S.L",2,1) -> 1 | AJ11: =Q11 -> T.P | AK11: =IF(AI11=2,1,0) -> 0 | AL11: =AH11 -> 0 | AM11: =IF(AK11=1,SUM(AK$8:AK11),"") ->  | AN11: =IF(AJ11="S.L",AN10+1,0) -> 0 | AO11: =F11/MAX($F$9:F11)-1 -> 0 | AP11: =F11-MAX($F$9:F11) -> 0
B12: 3 | C12: 0.995770615 | D12: T.P | E12: 104.5 | F12: 1149.5 | H12: ROI | J12: =(F43-E2)/E2 -> 0.8251890631 | L12: # RACHAS | N12: 23 | O12: 0.2336728143 | P12: =RAND() -> 0.6473218749 | Q12: S.L | R12: -60.5 | S12: 1149.5 | U12: ROI | W12: =(S43-E2)/E2 -> 0.8251890631 | Y12: # RACHAS | AA12: =AH8 -> 14 | AF12: =S12/MAX($S$9:S12)-1 -> -0.05 | AG12: =S12-MAX($S$9:S12) -> -60.5 | AH12: 1 | AI12: 2 | AJ12: S.L | AK12: 1 | AL12: 1 | AM12: =IF(AK12=1,SUM(AK$8:AK12),"") -> 1 | AN12: 1 | AO12: =F12/MAX($F$9:F12)-1 -> 0 | AP12: =F12-MAX($F$9:F12) -> 0
B13: 4 | C13: 0.944729503 | D13: S.L | E13: -57.475 | F13: 1092.025 | L13: S.L CONSEC. | N13: 3 | O13: 0.04881927683 | P13: =RAND() -> 0.6937974 | Q13: S.L | R13: -57.475 | S13: 1092.025 | Y13: S.L CONSEC. | AA13: =AN8 -> 4 | AF13: =S13/MAX($S$9:S13)-1 -> -0.0975 | AG13: =S13-MAX($S$9:S13) -> -117.975 | AH13: 0 | AI13: 2 | AJ13: S.L | AK13: 1 | AL13: 0 | AM13: =IF(AK13=1,SUM(AK$8:AK13),"") -> 2 | AN13: 2 | AO13: =F13/MAX($F$9:F13)-1 -> -0.05 | AP13: =F13-MAX($F$9:F13) -> -57.475
B14: 5 | C14: 0.1963812683 | D14: S.L | E14: -54.60125 | F14: 1037.42375 | O14: 0.07219095426 | P14: =RAND() -> 0.8613731519 | Q14: S.L | R14: -54.60125 | S14: 1037.42375 | AF14: =S14/MAX($S$9:S14)-1 -> -0.142625 | AG14: =S14-MAX($S$9:S14) -> -172.57625 | AH14: 0 | AI14: 2 | AJ14: S.L | AK14: 1 | AL14: 0 | AM14: =IF(AK14=1,SUM(AK$8:AK14),"") -> 3 | AN14: 3 | AO14: =F14/MAX($F$9:F14)-1 -> -0.0975 | AP14: =F14-MAX($F$9:F14) -> -112.07625
B15: 6 | C15: 0.6903710972 | D15: S.L | E15: -51.8711875 | F15: 985.5525625 | O15: 0.2611602652 | P15: =RAND() -> 0.1490874952 | Q15: S.L | R15: -51.8711875 | S15: 985.5525625 | AF15: =S15/MAX($S$9:S15)-1 -> -0.18549375 | AG15: =S15-MAX($S$9:S15) -> -224.4474375 | AH15: 0 | AI15: 2 | AJ15: S.L | AK15: 1 | AL15: 0 | AM15: =IF(AK15=1,SUM(AK$8:AK15),"") -> 4 | AN15: 4 | AO15: =F15/MAX($F$9:F15)-1 -> -0.142625 | AP15: =F15-MAX($F$9:F15) -> -163.9474375
B16: 7 | C16: 0.7760046317 | D16: T.P | E16: 98.55525625 | F16: 1084.107819 | O16: 0.6757392582 | P16: =RAND() -> 0.8355383917 | Q16: T.P | R16: 98.55525625 | S16: 1084.107819 | AF16: =S16/MAX($S$9:S16)-1 -> -0.104043125 | AG16: =S16-MAX($S$9:S16) -> -125.8921812 | AH16: 1 | AI16: 1 | AJ16: T.P | AK16: 0 | AL16: 1 | AM16: =IF(AK16=1,SUM(AK$8:AK16),"") ->  | AN16: 0 | AO16: =F16/MAX($F$9:F16)-1 -> -0.0568875 | AP16: =F16-MAX($F$9:F16) -> -65.39218125
B17: 8 | C17: 0.5331899952 | D17: S.L | E17: -54.20539094 | F17: 1029.902428 | O17: 0.7521048829 | P17: =RAND() -> 0.9555067286 | Q17: T.P | R17: 108.4107819 | S17: 1192.518601 | AF17: =S17/MAX($S$9:S17)-1 -> -0.0144474375 | AG17: =S17-MAX($S$9:S17) -> -17.48139937 | AH17: 0 | AI17: 1 | AJ17: T.P | AK17: 0 | AL17: 0 | AM17: =IF(AK17=1,SUM(AK$8:AK17),"") ->  | AN17: 0 | AO17: =F17/MAX($F$9:F17)-1 -> -0.104043125 | AP17: =F17-MAX($F$9:F17) -> -119.5975722
B18: 9 | C18: 0.6300533477 | D18: T.P | E18: 102.9902428 | F18: 1132.892671 | O18: 0.5909241842 | P18: =RAND() -> 0.273529733 | Q18: T.P | R18: 119.2518601 | S18: 1311.770461 | AF18: =S18/MAX($S$9:S18)-1 -> 0 | AG18: =S18-MAX($S$9:S18) -> 0 | AH18: 0 | AI18: 1 | AJ18: T.P | AK18: 0 | AL18: 0 | AM18: =IF(AK18=1,SUM(AK$8:AK18),"") ->  | AN18: 0 | AO18: =F18/MAX($F$9:F18)-1 -> -0.0144474375 | AP18: =F18-MAX($F$9:F18) -> -16.60732941
B19: 10 | C19: 0.03792189222 | D19: S.L | E19: -56.64463353 | F19: 1076.248037 | H19: RESULTADO | L19: RATIO RIESGO BENEFICIO | O19: 0.7134944348 | P19: =RAND() -> 0.7253872844 | Q19: S.L | R19: -65.58852303 | S19: 1246.181938 | V19: RESULTADO | Z19: RATIO RIESGO BENEFICIO | AF19: =S19/MAX($S$9:S19)-1 -> -0.05 | AG19: =S19-MAX($S$9:S19) -> -65.58852303 | AH19: 1 | AI19: 2 | AJ19: S.L | AK19: 1 | AL19: 1 | AM19: =IF(AK19=1,SUM(AK$8:AK19),"") -> 5 | AN19: 1 | AO19: =F19/MAX($F$9:F19)-1 -> -0.06372506562 | AP19: =F19-MAX($F$9:F19) -> -73.25196294
B20: 11 | C20: 0.5084919853 | D20: S.L | E20: -53.81240185 | F20: 1022.435635 | H20: / | I20: # Operaciones | J20: % | L20: / | M20: MONTO | O20: 0.2535834987 | P20: =RAND() -> 0.2468589581 | Q20: S.L | R20: -62.30909688 | S20: 1183.872841 | V20: / | W20: # Operaciones | X20: % | Z20: / | AA20: MONTO | AF20: =S20/MAX($S$9:S20)-1 -> -0.0975 | AG20: =S20-MAX($S$9:S20) -> -127.8976199 | AH20: 0 | AI20: 2 | AJ20: S.L | AK20: 1 | AL20: 0 | AM20: =IF(AK20=1,SUM(AK$8:AK20),"") -> 6 | AN20: 2 | AO20: =F20/MAX($F$9:F20)-1 -> -0.1105388123 | AP20: =F20-MAX($F$9:F20) -> -127.0643648
B21: 12 | C21: 0.2313119283 | D21: T.P | E21: 102.2435635 | F21: 1124.679199 | H21: GANADOR | I21: =COUNTIF(D10:D43,"T.P") -> 16 | J21: =I21/I23 -> 0.4705882353 | L21: GANANCIA MEDIA | M21: =SUMIF(D10:E43,"T.P",E10:E43)/I21 -> 131.1921096 | O21: 0.02756569148 | P21: =RAND() -> 0.8683607834 | Q21: S.L | R21: -59.19364204 | S21: 1124.679199 | V21: GANADOR | W21: =COUNTIF(Q10:Q43,"T.P") -> 16 | X21: =W21/W23 -> 0.4705882353 | Z21: GANANCIA MEDIA | AA21: =SUMIF(Q10:S43,"T.P",R10:R43)/W21 -> 132.0989384 | AF21: =S21/MAX($S$9:S21)-1 -> -0.142625 | AG21: =S21-MAX($S$9:S21) -> -187.091262 | AH21: 0 | AI21: 2 | AJ21: S.L | AK21: 1 | AL21: 0 | AM21: =IF(AK21=1,SUM(AK$8:AK21),"") -> 7 | AN21: 3 | AO21: =F21/MAX($F$9:F21)-1 -> -0.02159269358 | AP21: =F21-MAX($F$9:F21) -> -24.82080127
B22: 13 | C22: 0.17296844 | D22: S.L | E22: -56.23395994 | F22: 1068.445239 | H22: PERDEDOR | I22: =COUNTIF(D10:D43,"S.L") -> 18 | J22: =I22/I23 -> 0.5294117647 | L22: RIESGO MEDIO | M22: =(SUMIF(D10:E43,"S.L",E10:E43)/I22)*-1 -> 70.77137172 | O22: 0.4694102991 | P22: =RAND() -> 0.5634546501 | Q22: S.L | R22: -56.23395994 | S22: 1068.445239 | V22: PERDEDOR | W22: =COUNTIF(Q10:Q43,"S.L") -> 18 | X22: =W22/W23 -> 0.5294117647 | Z22: RIESGO MEDIO | AA22: =(SUMIF(Q10:S43,"S.L",R10:R43)/W22)*-1 -> 71.57744172 | AF22: =S22/MAX($S$9:S22)-1 -> -0.18549375 | AG22: =S22-MAX($S$9:S22) -> -243.3252219 | AH22: 0 | AI22: 2 | AJ22: S.L | AK22: 1 | AL22: 0 | AM22: =IF(AK22=1,SUM(AK$8:AK22),"") -> 8 | AN22: 4 | AO22: =F22/MAX($F$9:F22)-1 -> -0.0705130589 | AP22: =F22-MAX($F$9:F22) -> -81.0547612
B23: 14 | C23: 0.8069336571 | D23: T.P | E23: 106.8445239 | F23: 1175.289763 | H23: TOTAL | I23: =SUM(I21:I22) -> 34 | J23: =SUM(J21:J22) -> 1 | L23: ESP. MATEMÁT | M23: =(J21*M21)-(J22*M22) -> 24.27026656 | O23: 0.7000820681 | P23: =RAND() -> 0.4908182309 | Q23: T.P | R23: 106.8445239 | S23: 1175.289763 | V23: TOTAL | W23: =SUM(W21:W22) -> 34 | X23: =SUM(X21:X22) -> 1 | Z23: ESP. MATEMÁT | AA23: =(X21*AA21)-(X22*AA22) -> 24.27026656 | AF23: =S23/MAX($S$9:S23)-1 -> -0.104043125 | AG23: =S23-MAX($S$9:S23) -> -136.480698 | AH23: 1 | AI23: 1 | AJ23: T.P | AK23: 0 | AL23: 1 | AM23: =IF(AK23=1,SUM(AK$8:AK23),"") ->  | AN23: 0 | AO23: =F23/MAX($F$9:F23)-1 -> 0 | AP23: =F23-MAX($F$9:F23) -> 0
B24: 15 | C24: 0.3406820972 | D24: S.L | E24: -58.76448813 | F24: 1116.525275 | O24: 0.202352023 | P24: =RAND() -> 0.4229562741 | Q24: T.P | R24: 117.5289763 | S24: 1292.818739 | AF24: =S24/MAX($S$9:S24)-1 -> -0.0144474375 | AG24: =S24-MAX($S$9:S24) -> -18.95172175 | AH24: 0 | AI24: 1 | AJ24: T.P | AK24: 0 | AL24: 0 | AM24: =IF(AK24=1,SUM(AK$8:AK24),"") ->  | AN24: 0 | AO24: =F24/MAX($F$9:F24)-1 -> -0.05 | AP24: =F24-MAX($F$9:F24) -> -58.76448813
B25: 16 | C25: 0.988477854 | D25: T.P | E25: 111.6525275 | F25: 1228.177802 | O25: 0.588412986 | P25: =RAND() -> 0.8035354371 | Q25: T.P | R25: 129.2818739 | S25: 1422.100613 | AF25: =S25/MAX($S$9:S25)-1 -> 0 | AG25: =S25-MAX($S$9:S25) -> 0 | AH25: 0 | AI25: 1 | AJ25: T.P | AK25: 0 | AL25: 0 | AM25: =IF(AK25=1,SUM(AK$8:AK25),"") ->  | AN25: 0 | AO25: =F25/MAX($F$9:F25)-1 -> 0 | AP25: =F25-MAX($F$9:F25) -> 0
B26: 17 | C26: 0.7880649474 | D26: T.P | E26: 122.8177802 | F26: 1350.995582 | O26: 0.7979653394 | P26: =RAND() -> 0.9112575463 | Q26: T.P | R26: 142.2100613 | S26: 1564.310674 | AF26: =S26/MAX($S$9:S26)-1 -> 0 | AG26: =S26-MAX($S$9:S26) -> 0 | AH26: 0 | AI26: 1 | AJ26: T.P | AK26: 0 | AL26: 0 | AM26: =IF(AK26=1,SUM(AK$8:AK26),"") ->  | AN26: 0 | AO26: =F26/MAX($F$9:F26)-1 -> 0 | AP26: =F26-MAX($F$9:F26) -> 0
B27: 18 | C27: 0.4732677234 | D27: S.L | E27: -67.54977911 | F27: 1283.445803 | O27: 0.07738502938 | P27: =RAND() -> 0.4744871085 | Q27: S.L | R27: -78.21553371 | S27: 1486.09514 | AF27: =S27/MAX($S$9:S27)-1 -> -0.05 | AG27: =S27-MAX($S$9:S27) -> -78.21553371 | AH27: 1 | AI27: 2 | AJ27: S.L | AK27: 1 | AL27: 1 | AM27: =IF(AK27=1,SUM(AK$8:AK27),"") -> 9 | AN27: 1 | AO27: =F27/MAX($F$9:F27)-1 -> -0.05 | AP27: =F27-MAX($F$9:F27) -> -67.54977911
B28: 19 | C28: 0.6839736091 | D28: S.L | E28: -64.17229015 | F28: 1219.273513 | O28: 0.3880774194 | P28: =RAND() -> 0.2995385037 | Q28: T.P | R28: 148.609514 | S28: 1634.704654 | AF28: =S28/MAX($S$9:S28)-1 -> 0 | AG28: =S28-MAX($S$9:S28) -> 0 | AH28: 1 | AI28: 1 | AJ28: T.P | AK28: 0 | AL28: 1 | AM28: =IF(AK28=1,SUM(AK$8:AK28),"") ->  | AN28: 0 | AO28: =F28/MAX($F$9:F28)-1 -> -0.0975 | AP28: =F28-MAX($F$9:F28) -> -131.7220693
B29: 20 | C29: 0.6691086362 | D29: T.P | E29: 121.9273513 | F29: 1341.200864 | O29: 0.3326470389 | P29: =RAND() -> 0.1838050046 | Q29: S.L | R29: -81.73523272 | S29: 1552.969422 | AF29: =S29/MAX($S$9:S29)-1 -> -0.05 | AG29: =S29-MAX($S$9:S29) -> -81.73523272 | AH29: 1 | AI29: 2 | AJ29: S.L | AK29: 1 | AL29: 1 | AM29: =IF(AK29=1,SUM(AK$8:AK29),"") -> 10 | AN29: 1 | AO29: =F29/MAX($F$9:F29)-1 -> -0.00725 | AP29: =F29-MAX($F$9:F29) -> -9.794717971
B30: 21 | C30: 0.05732811403 | D30: T.P | E30: 134.1200864 | F30: 1475.320951 | O30: =RAND() -> 0.2674045626 | P30: =RAND() -> 0.5720806832 | Q30: S.L | R30: -77.64847109 | S30: 1475.320951 | AF30: =S30/MAX($S$9:S30)-1 -> -0.0975 | AG30: =S30-MAX($S$9:S30) -> -159.3837038 | AH30: 0 | AI30: 2 | AJ30: S.L | AK30: 1 | AL30: 0 | AM30: =IF(AK30=1,SUM(AK$8:AK30),"") -> 11 | AN30: 2 | AO30: =F30/MAX($F$9:F30)-1 -> 0 | AP30: =F30-MAX($F$9:F30) -> 0
B31: 22 | C31: 0.2998146142 | D31: T.P | E31: 147.5320951 | F31: 1622.853046 | O31: 0.2105491221 | P31: =RAND() -> 0.8026880422 | Q31: T.P | R31: 147.5320951 | S31: 1622.853046 | AF31: =S31/MAX($S$9:S31)-1 -> -0.00725 | AG31: =S31-MAX($S$9:S31) -> -11.85160874 | AH31: 1 | AI31: 1 | AJ31: T.P | AK31: 0 | AL31: 1 | AM31: =IF(AK31=1,SUM(AK$8:AK31),"") ->  | AN31: 0 | AO31: =F31/MAX($F$9:F31)-1 -> 0 | AP31: =F31-MAX($F$9:F31) -> 0
B32: 23 | C32: 0.7209501791 | D32: T.P | E32: 162.2853046 | F32: 1785.13835 | O32: 0.3513640658 | P32: =RAND() -> 0.5515583905 | Q32: S.L | R32: -81.14265229 | S32: 1541.710393 | AF32: =S32/MAX($S$9:S32)-1 -> -0.0568875 | AG32: =S32-MAX($S$9:S32) -> -92.99426103 | AH32: 1 | AI32: 2 | AJ32: S.L | AK32: 1 | AL32: 1 | AM32: =IF(AK32=1,SUM(AK$8:AK32),"") -> 12 | AN32: 1 | AO32: =F32/MAX($F$9:F32)-1 -> 0 | AP32: =F32-MAX($F$9:F32) -> 0
B33: 24 | C33: 0.4716766356 | D33: S.L | E33: -89.25691751 | F33: 1695.881433 | O33: 0.7295043696 | P33: =RAND() -> 0.02270678576 | Q33: S.L | R33: -77.08551967 | S33: 1464.624874 | AF33: =S33/MAX($S$9:S33)-1 -> -0.104043125 | AG33: =S33-MAX($S$9:S33) -> -170.0797807 | AH33: 0 | AI33: 2 | AJ33: S.L | AK33: 1 | AL33: 0 | AM33: =IF(AK33=1,SUM(AK$8:AK33),"") -> 13 | AN33: 2 | AO33: =F33/MAX($F$9:F33)-1 -> -0.05 | AP33: =F33-MAX($F$9:F33) -> -89.25691751
B34: 25 | C34: 0.2399953072 | D34: T.P | E34: 169.5881433 | F34: 1865.469576 | O34: 0.466655066 | P34: =RAND() -> 0.7600584641 | Q34: T.P | R34: 146.4624874 | S34: 1611.087361 | AF34: =S34/MAX($S$9:S34)-1 -> -0.0144474375 | AG34: =S34-MAX($S$9:S34) -> -23.61729333 | AH34: 1 | AI34: 1 | AJ34: T.P | AK34: 0 | AL34: 1 | AM34: =IF(AK34=1,SUM(AK$8:AK34),"") ->  | AN34: 0 | AO34: =F34/MAX($F$9:F34)-1 -> 0 | AP34: =F34-MAX($F$9:F34) -> 0
B35: 26 | C35: 0.2480883176 | D35: S.L | E35: -93.2734788 | F35: 1772.196097 | O35: 0.2309666099 | P35: =RAND() -> 0.8238098882 | Q35: T.P | R35: 161.1087361 | S35: 1772.196097 | AF35: =S35/MAX($S$9:S35)-1 -> 0 | AG35: =S35-MAX($S$9:S35) -> 0 | AH35: 0 | AI35: 1 | AJ35: T.P | AK35: 0 | AL35: 0 | AM35: =IF(AK35=1,SUM(AK$8:AK35),"") ->  | AN35: 0 | AO35: =F35/MAX($F$9:F35)-1 -> -0.05 | AP35: =F35-MAX($F$9:F35) -> -93.2734788
B36: 27 | C36: 0.7891694984 | D36: T.P | E36: 177.2196097 | F36: 1949.415707 | O36: 0.8202827235 | P36: =RAND() -> 0.695700148 | Q36: S.L | R36: -88.60980486 | S36: 1683.586292 | AF36: =S36/MAX($S$9:S36)-1 -> -0.05 | AG36: =S36-MAX($S$9:S36) -> -88.60980486 | AH36: 1 | AI36: 2 | AJ36: S.L | AK36: 1 | AL36: 1 | AM36: =IF(AK36=1,SUM(AK$8:AK36),"") -> 14 | AN36: 1 | AO36: =F36/MAX($F$9:F36)-1 -> 0 | AP36: =F36-MAX($F$9:F36) -> 0
B37: 28 | C37: 0.2109139917 | D37: S.L | E37: -97.47078535 | F37: 1851.944922 | O37: 0.735476005 | P37: =RAND() -> 0.5672792816 | Q37: S.L | R37: -84.17931462 | S37: 1599.406978 | AF37: =S37/MAX($S$9:S37)-1 -> -0.0975 | AG37: =S37-MAX($S$9:S37) -> -172.7891195 | AH37: 0 | AI37: 2 | AJ37: S.L | AK37: 1 | AL37: 0 | AM37: =IF(AK37=1,SUM(AK$8:AK37),"") -> 15 | AN37: 2 | AO37: =F37/MAX($F$9:F37)-1 -> -0.05 | AP37: =F37-MAX($F$9:F37) -> -97.47078535
B38: 29 | C38: 0.9436005707 | D38: S.L | E38: -92.59724608 | F38: 1759.347676 | O38: 0.8815089236 | P38: =RAND() -> 0.1787945128 | Q38: S.L | R38: -79.97034889 | S38: 1519.436629 | AF38: =S38/MAX($S$9:S38)-1 -> -0.142625 | AG38: =S38-MAX($S$9:S38) -> -252.7594684 | AH38: 0 | AI38: 2 | AJ38: S.L | AK38: 1 | AL38: 0 | AM38: =IF(AK38=1,SUM(AK$8:AK38),"") -> 16 | AN38: 3 | AO38: =F38/MAX($F$9:F38)-1 -> -0.0975 | AP38: =F38-MAX($F$9:F38) -> -190.0680314
B39: 30 | C39: 0.3516505554 | D39: S.L | E39: -87.96738378 | F39: 1671.380292 | O39: 0.211732397 | P39: =RAND() -> 0.8382443557 | Q39: S.L | R39: -75.97183144 | S39: 1443.464797 | AF39: =S39/MAX($S$9:S39)-1 -> -0.18549375 | AG39: =S39-MAX($S$9:S39) -> -328.7312998 | AH39: 0 | AI39: 2 | AJ39: S.L | AK39: 1 | AL39: 0 | AM39: =IF(AK39=1,SUM(AK$8:AK39),"") -> 17 | AN39: 4 | AO39: =F39/MAX($F$9:F39)-1 -> -0.142625 | AP39: =F39-MAX($F$9:F39) -> -278.0354152
B40: 31 | C40: 0.8041795025 | D40: T.P | E40: 167.1380292 | F40: 1838.518321 | O40: 0.1113590925 | P40: =RAND() -> 0.2973218574 | Q40: T.P | R40: 144.3464797 | S40: 1587.811277 | AF40: =S40/MAX($S$9:S40)-1 -> -0.104043125 | AG40: =S40-MAX($S$9:S40) -> -184.3848201 | AH40: 1 | AI40: 1 | AJ40: T.P | AK40: 0 | AL40: 1 | AM40: =IF(AK40=1,SUM(AK$8:AK40),"") ->  | AN40: 0 | AO40: =F40/MAX($F$9:F40)-1 -> -0.0568875 | AP40: =F40-MAX($F$9:F40) -> -110.897386
B41: 32 | C41: 0.6857027133 | D41: S.L | E41: -91.92591605 | F41: 1746.592405 | O41: 0.4827160637 | P41: =RAND() -> 0.9961743407 | Q41: T.P | R41: 158.7811277 | S41: 1746.592405 | AF41: =S41/MAX($S$9:S41)-1 -> -0.0144474375 | AG41: =S41-MAX($S$9:S41) -> -25.60369235 | AH41: 0 | AI41: 1 | AJ41: T.P | AK41: 0 | AL41: 0 | AM41: =IF(AK41=1,SUM(AK$8:AK41),"") ->  | AN41: 0 | AO41: =F41/MAX($F$9:F41)-1 -> -0.104043125 | AP41: =F41-MAX($F$9:F41) -> -202.8233021
B42: 33 | C42: =RAND() -> 0.3655702272 | D42: T.P | E42: 174.6592405 | F42: 1921.251645 | O42: 0.005408164102 | P42: =RAND() -> 0.4196749008 | Q42: T.P | R42: 174.6592405 | S42: 1921.251645 | AF42: =S42/MAX($S$9:S42)-1 -> 0 | AG42: =S42-MAX($S$9:S42) -> 0 | AH42: 0 | AI42: 1 | AJ42: T.P | AK42: 0 | AL42: 0 | AM42: =IF(AK42=1,SUM(AK$8:AK42),"") ->  | AN42: 0 | AO42: =F42/MAX($F$9:F42)-1 -> -0.0144474375 | AP42: =F42-MAX($F$9:F42) -> -28.16406159
B43: 34 | C43: =RAND() -> 0.2735603831 | D43: S.L | E43: -96.06258227 | F43: 1825.189063 | O43: 0.670490088 | P43: =RAND() -> 0.3334252164 | Q43: S.L | R43: -96.06258227 | S43: 1825.189063 | AF43: =S43/MAX($S$9:S43)-1 -> -0.05 | AG43: =S43-MAX($S$9:S43) -> -96.06258227 | AH43: 1 | AI43: 2 | AJ43: S.L | AK43: 1 | AL43: 1 | AM43: =IF(AK43=1,SUM(AK$8:AK43),"") -> 18 | AN43: 1 | AO43: =F43/MAX($F$9:F43)-1 -> -0.06372506562 | AP43: =F43-MAX($F$9:F43) -> -124.2266439
J49: MIRA EL VÍDEO EXPLICATIVO:
I50: https://youtu.be/RwQhkQa8CcA
J53: ¡ÚNETE! A NUESTRAS REDES SOCIALES:
J63: MATEMÁTICA DEL TRADING
